Cogmind - Beta 17 @@@ ROGUE MODE // 2026.08.06 @ 20:01:14 Player: Floof Enjoyer Result: Destroyed by as-38507 with Assembled Blade Performance ------------- Evolutions (0) 0 Regions Visited (2) 400 Robots Destroyed (14) 70 Value Destroyed (238) 238 Prototype IDs (0) 0 Alien Tech Used (0) 0 Bonus (0) 0 TOTAL SCORE: 708 Bonus ------- None Cogmind --------- Core Integrity 0/250 Matter 294/300 Energy 150/150 System Corruption 7% Temperature Warning (320) Movement Core (250) Ox4 Location -10/Mines Parts ------- > --- POWER (1) -------- Light Angular Momentum Engine > --- PROPULSION (2) --- (None) > --- UTILITY (2) ------ Signal Interpreter > --- WEAPON (2) ------- Beam Rifle Light Assault Rifle > --- INVENTORY (5) ---- Light Nuclear Core Improved Hover Unit Improved Heat Sink Weight Redist. System Beam Rifle Peak State ------------ > --- POWER ------------ Light Angular Momentum Engine > --- PROPULSION ------- Improved Hover Unit Improved Hover Unit > --- UTILITY ---------- Signal Interpreter Propulsion Shielding > --- WEAPON ----------- Beam Rifle Beam Rifle > --- INVENTORY -------- Light Nuclear Core Improved Hover Unit Improved Heat Sink Weight Redist. System Light Assault Rifle [Rating: 16] Favorites ----------- Power Light Ion Engine Engine Light Ion Engine Propulsion Improved Hover Unit Wheel Wheel Hover Unit Improved Hover Unit Flight Unit Flight Unit Utility Propulsion Shielding Device Improved Terrain Scanner Storage Medium Battery Processor Signal Interpreter Protection Propulsion Shielding Weapon Light Assault Rifle Energy Gun EM Pulse Gun Energy Cannon Beam Cannon Ballistic Gun Light Assault Rifle Build | -11 -10 -10 ------- Run | Yrd Mat Min Slots Evolved . | . . . Power . | . . . Propulsion . | . . . Utility . | . . . Weapon . | . . . Parts Attached 25 | 7 12 6 Power 3 | 1 1 1 Engine 3 | 1 1 1 Core . | . . . Reactor . | . . . Propulsion 8 | 2 6 . Treads . | . . . Leg . | . . . Wheel 4 | 2 2 . Hover 2 | . 2 . Flight 2 | . 2 . Utility 5 | 1 3 1 Device 2 | 1 1 . Storage 1 | . 1 . Processor 1 | . . 1 Hackware . | . . . Protection 1 | . 1 . Artifact . | . . . Weapon 9 | 3 2 4 Energy Gun 4 | 2 . 2 Energy Cannon 1 | . 1 . Ballistic Gun 4 | 1 1 2 Ballistic Cannon . | . . . Launcher . | . . . Special Weapon . | . . . Impact Weapon . | . . . Slashing Weapon . | . . . Piercing Weapon . | . . . Special Melee Weapon . | . . . Unidentified Prototypes . | . . . Parts Lost 5 | . 2 3 Power . | . . . Propulsion 2 | . . 2 Utility 1 | . . 1 Weapon 2 | . 2 . Highest Loss Streak 3 | . 2 3 To Critical Strikes . | . . . Average Backups 3 | 1 3 5 Power . | . . . Propulsion . | . . 1 Utility 1 | . . 2 Weapon 1 | . 1 1 Tool/Special . | . . . Unused Backups 5 | . 2 3 Power 1 | . . 1 Propulsion 2 | . 1 1 Utility 2 | . 1 1 Weapon . | . . . Tool/Special . | . . . Average Slot Usage (%) 95 | . 91 99 Engine 14 | . 14 14 Wheel 6 | . 12 . Hover 20 | . 14 27 Device 6 | . 12 . Storage 2 | . 5 . Processor 6 | . . 14 Protection 8 | . 3 14 Energy Gun 7 | . 6 8 Ballistic Gun 19 | . 19 19 Peak Build Rating 16 | 8 13 16 Average Rating 10 | 4 9 12 On Entrance 5 | . 8 9 Avg Prop Armor Cover (%) . | . . . Naked Turns . | . . . Heaviest Build 16 | 10 10 16 Greatest Support 20 | 20 20 14 Greatest Overweight (x) 1 | . . 1 Average Overweight (x) . | . . . Largest Inventory Capacity 5 | 5 5 5 Average Capacity 5 | 5 5 5 Most Carried 5 | 3 5 5 Average Carried 4 | 1 3 4 Final Capacity 5 | 5 5 5 Final Carried 5 | 2 5 5 Class Distribution -------------------- 100% | Mutant Dominant Class ---------------- Mutant | -10/Materials Mutant | -10/Mines Resources | -11 -10 -10 ----------- Run | Yrd Mat Min Matter Collected 515 | 213 205 97 Remotely . | . . . Salvage Created 370 | 30 245 95 Parts 32 | 6 16 10 Haulers Intercepted . | . . . Recyclers Shooed . | . . . Parts Field Recycled . | . . . Retrieved Matter . | . . . Parts Self-Destructed . | . . . Prevented . | . . . Parts Restored . | . . . Kills | -11 -10 -10 ------- Run | Yrd Mat Min Combat Hostiles Destroyed 14 | . 8 6 Guns 13 | . 7 6 Cannons 1 | . 1 . Classes Destroyed 5 | 1 3 1 Builder 1 | . 1 . Tunneler 1 | 1 . . Swarmer 8 | . 5 3 Grunt 4 | . 3 1 Assembled 2 | . . 2 Best Kill Streak 8 | 1 8 3 Combat Bots Only 7 | . 7 3 Max Kills in Single Turn 2 | 1 2 1 Gunslinging . | . . . Exploded . | . . . Melee . | . . . Uniques/NPCs Destroyed . | . . . Combat | -11 -10 -10 -------- Run | Yrd Mat Min Hostile Shots Fired 95 | . 49 46 Missed 29 | . 10 19 Hits 66 | . 39 27 Melee 6 | . . 6 Projectile 60 | . 39 21 Damage Taken 788 | . 342 446 Core 262 | . 95 167 Absorbed by Shields . | . . . Redirected to Shielding 30 | . . 30 Core Remaining (%) 100 | 100 . . Volleys Fired 51 | 1 25 25 Largest 2 | 2 2 2 Hottest 112 | 80 80 112 Shots Fired 100 | 2 48 50 Gun 91 | 2 39 50 Cannon 9 | . 9 . Launcher . | . . . Special . | . . . Kinetic 56 | . 26 30 Thermal 29 | . 9 20 Explosive . | . . . Electromagnetic 15 | 2 13 . Robot Hit Streak 6 | 1 3 6 Robot Miss Streak 8 | . 3 8 Penetration Max . | . . . Secondary Targets 2 | . 1 1 Max Gunslinging Chain 1 | . 1 1 Shots Hit Robots 44 | 1 23 20 Core Hits 22 | 1 11 10 Critical Kills . | . . . Critical Parts Destroyed . | . . . Critical Strikes 2 | . . 2 Burn 2 | . . 2 Melee Attacks . | . . . Impact . | . . . Slashing . | . . . Piercing . | . . . Sneak Attacks . | . . . Combat Hostiles . | . . . Follow-up Attacks . | . . . Damage Inflicted 567 | 12 285 270 Guns 493 | 12 214 267 Cannons 71 | . 71 . Explosions . | . . . Melee . | . . . Ramming 3 | . . 3 Kinetic 232 | . 108 124 Thermal 214 | . 71 143 Explosive . | . . . Electromagnetic 118 | 12 106 . Impact . | . . . Slashing . | . . . Piercing . | . . . Highest Corruption 7 | . . 7 Average Corruption 4 | . . 4 Corruption Purged . | . . . Corruption Blocked . | . . . Overload Shots . | . . . Overflow Damage . | . . . Projectiles . | . . . Explosions . | . . . Melee . | . . . Knockbacks . | . . . Impact . | . . . Kinetic . | . . . Secondary . | . . . Self-Inflicted Damage 1 | . . 1 Shots . | . . . Rammed 1 | . . 1 Targets Rammed 1 | . . 1 Kicked . | . . . Crushed . | . . . Highest Temperature 320 | 18 244 320 Average Temperature 99 | 12 82 116 Received Heat Transfer 66 | . 60 6 Effects 1 | . 1 . Energy Bleed 1 | . 1 . Siege Activations . | . . . Martial Activations . | . . . Shielding Activations . | . . . Robots Disrupted . | . . . Combat Hostiles . | . . . Robots Corrupted . | . . . Combat Hostiles . | . . . Parts Fried 1 | . 1 . Impact Corruptions . | . . . Robots Melted . | . . . Combat Hostiles . | . . . Parts Melted . | . . . Heat Transferred 666 | . 148 518 Parts Sabotaged . | . . . Parts Stolen . | . . . Parts Stripped . | . . . Power Chain Reactions . | . . . Alert | -11 -10 -10 ------- Run | Yrd Mat Min Maximum Alert Level . | . . . Low Security (%) 100 | 100 100 100 Level 1 . | . . . Level 2 . | . . . Level 3 . | . . . Level 4 . | . . . Level 5 . | . . . High Security . | . . . Max Security . | . . . Peak Influence 130 | 5 130 103 Initial 28 | . . 28 Average 56 | 1 71 51 Influence Increases 350 | 5 225 120 Destroy 0b10 Robot/C 240 | . 160 80 Destroy 0b10 Robot/NC 10 | 5 5 . Destroy Leader 40 | . 30 10 Disable Machine 15 | . 15 . Lose Combat Pursuer 45 | . 15 30 Influence Decreases 350 | 5 150 195 Entered New Map 47 | . . 47 Time Decay 263 | 5 130 128 Lost Part 20 | . 20 . Lost Ally 20 | . . 20 Squads Dispatched 3 | . 3 . Investigation 2 | . 2 . Extermination . | . . . Reinforcement 1 | . 1 . Assault . | . . . Garrison . | . . . Intercept . | . . . Searches Triggered . | . . . Construction Impeded . | . . . Haulers Reinforced . | . . . Active Scanning Responses . | . . . Cargo Convoy Interrupts . | . . . Stealth | -11 -10 -10 --------- Run | Yrd Mat Min Distress Signals . | . . . Communications Jammed . | . . . Distress Signals . | . . . Times Spotted 23 | . 12 11 Peak Tracking Total 6 | . 6 5 Tactical Retreats 3 | . 1 2 Traps | -11 -10 -10 ------- Run | Yrd Mat Min Traps Triggered 3 | . 3 . Indirectly . | . . . Trap Hack Attempts . | . . . Triggered . | . . . Disarmed . | . . . Reprogrammed . | . . . Reused . | . . . Traps Extracted . | . . . Installed . | . . . Triggered . | . . . Machines | -11 -10 -10 ---------- Run | Yrd Mat Min Machines Disabled 1 | . 1 . Max in Single Turn 1 | . 1 . Machines Repaired . | . . . Machines Dismantled . | . . . Machines Sabotaged . | . . . Overloaded Fab Kills . | . . . Hacking | -11 -10 -10 --------- Run | Yrd Mat Min Machines Accessed . | . . . Terminals . | . . . Fabricators . | . . . Repair Stations . | . . . Recycling Units . | . . . Scanalyzers . | . . . Garrison Access . | . . . Total Hacks . | . . . Successful . | . . . Failed . | . . . Catastrophic . | . . . Database Lockouts . | . . . Manual . | . . . Terminals . | . . . Fabricators . | . . . Repair Stations . | . . . Recycling Units . | . . . Scanalyzers . | . . . Garrison Access . | . . . Terminal Hacks . | . . . Fabricator Hacks . | . . . Repair Station Hacks . | . . . Recycling Unit Hacks . | . . . Scanalyzer . | . . . Garrison Access Hacks . | . . . Unauthorized Hacks . | . . . Terminals . | . . . Fabricators . | . . . Repair Stations . | . . . Recycling Units . | . . . Scanalyzers . | . . . Garrison Access . | . . . Data Cores Recovered . | . . . Used . | . . . Hacking Detections . | . . . Full Trace Events . | . . . Feedback Events . | . . . Feedback Blocked . | . . . Robot Schematics Acquired . | . . . Robots Built . | . . . Authchips . | . . . Time . | . . . Total Robot Build Rating . | . . . Part Schematics Acquired . | . . . Parts Built . | . . . Authchips . | . . . Time . | . . . Total Part Build Rating . | . . . Part Studies Acquired . | . . . Parts Repaired . | . . . Time . | . . . Parts Recycled . | . . . Recycled Matter . | . . . Retrieved Matter . | . . . Retrieved Components . | . . . Parts Scanalyzed . | . . . Part Schematics Acquired . | . . . Parts Damaged . | . . . Bothacking | -11 -10 -10 ------------ Run | Yrd Mat Min Used RIF Installer . | . . . Robots Hacked . | . . . Non-combat . | . . . Combat . | . . . Robot Hacks Applied . | . . . Relay Couplers Released . | . . . Fabnet Peak Effective % . | . . . Robots Rewired . | . . . Allies Hacked . | . . . Hacks Repelled . | . . . Allies | -11 -10 -10 -------- Run | Yrd Mat Min Total Allies 1 | . . 1 Largest Group 1 | . . 1 Highest-Rated Group 31 | . . 31 Highest-Rated Ally 31 | . . 31 Total Orders . | . . . Ally Attacks 5 | . . 5 Total Damage 106 | . . 106 Kills . | . . . Allies Corrupted . | . . . Allies Melted . | . . . Intel | -11 -10 -10 ------- Run | Yrd Mat Min Active Infowar (turns) 184 | 14 170 . Terrain 184 | 14 170 . Robot Analysis Total . | . . . Derelict Logs Recovered 1 | . . 1 Drone Launches . | . . . Drone Recoveries . | . . . Exploration | -11 -10 -10 ------------- Run | Yrd Mat Min Turns Passed 605 | 49 281 275 Spaces Moved 601 | 40 247 314 Core 3 | 3 . . Treads . | . . . Legs . | . . . Wheels 109 | 37 72 . Hover 470 | . 156 314 Flight 19 | . 19 . Fastest Speed 37 | 50 37 56 Average Speed 60 | 77 61 57 Slowest Speed 116 | 80 80 116 Overloaded Moves . | . . . Propulsion Burnouts . | . . . Robots Hopped . | . . . Potential Cave-ins . | . . . Cave-ins Triggered . | . . . Exploration Rate (%) 34 | 4 37 63 Regions Visited 2 Branch Regions 1 Pre-discovered Areas . | . . . Known Exits Taken . | . . . Unknown Exits Taken 2 | 1 1 . Scrap Searched 1 | . . 1 Spaces Dug . | . . . Terrain Destroyed . | . . . Melee . | . . . Projectile . | . . . AOE . | . . . Terrain Rammed . | . . . Walls Destroyed . | . . . Machines Disabled . | . . . Actions | -11 -10 -10 --------- Run | Yrd Mat Min Total 757 | 56 335 366 Wait 29 | . 17 12 Move 599 | 39 246 314 Hop . | . . . Pick Up 28 | 8 18 2 Fast Attach 3 | . 3 . Attach 14 | 7 7 . Detach 2 | 1 1 . Swap 12 | . 5 7 Drop 18 | . 13 5 Fire 51 | 1 25 25 Melee . | . . . Ram 1 | . . 1 Kick . | . . . Crush . | . . . Escape Stasis . | . . . Rewire . | . . . Trap . | . . . Miscellaneous . | . . . Route ------- -11/Scrapyard -10/Materials -10/Mines (discovered 1 exit: *Mat) History --------- Turn | Location | Event 14 | -11/Scrapyard | Discovered new exit (range 15) 50 | -11/Scrapyard | Entered Materials 165 | -10/Materials | Destroyed 7 combat bots 315 | -10/Materials | Build established: Mutant 320 | -10/Materials | Discovered new exit (range 12) 331 | -10/Materials | Entered Mines 364 | -10/Mines | Assembled infested the area 372 | -10/Mines | Received a Mining Laser from a helpful Derelict 386 | -10/Mines | Met a Derelict bent on vengeance 446 | -10/Mines | A weapon hastily lodged in a ceiling crevice suddenly fell to the ground 458 | -10/Mines | Discovered new exit (range 13) 470 | -10/Mines | Identified exit to Materials 536 | -10/Mines | Core integrity fell below 50% 606 | -10/Mines | Core integrity fell below 20% 606 | -10/Mines | Destroyed by as-38507 with Assembled Blade Last Messages --------------- U-05 Engineer lays Concrete. T-07 Excavator is excavating. U-05 Engineer lays Concrete. U-05 Engineer builds a Wall. Acquired 10 matter. T-07 Excavator is excavating. as-50763 suffers critical hit (Burn). as-50763 destroyed. Acquired 3 matter. K-01 Serf collects debris. Extracted 6 matter. K-01 Serf collects debris. Slammed into K-01 Serf. as-67337 destroyed. Imp. Hover Unit destroyed. System corrupted by crushing effect (+2). Propulsion Shielding destroyed. System corrupted by crushing effect (+5). Knocked back. Imp. Hover Unit destroyed. Map ----- +----------------------------------------------------+ | ????# #?# #???????#?????????????????????????????? | | ????# #?# #?????????????????????????????????????? | | ##### #?# #?????????????????????????????????????? | | #?#*=#?????###?????????????????????????????? | | ##### #?# =#????? ###???????????????????????????? | | ????# #?#[ #???? #???????????????????????????? | | ????# ### #???# """ #??????????????????????????? | | ???## # #### """ #??????????????????????????? | | ???# """ #?????????????????????????? | | #### #?????????????????????????? | | ## #?????????????????????????? | | ### ### ## #?????????????????????????? | | ## #?####?####?# ##?????? %?????????????????? | | ?# #????????????# ##??????#% ????????????????? | | ?# #?????#######? ###??????#% #????????????????? | | ?# #????## ##? #???##### #????????????????? | | ?# ###?## / #? #??## ##???????????????? | | ## ### #??#### % % ????????????????? | | ##???%= """ #?????????????????? | | ##????? a""" #??????????????????? | | ##??????# """ #??????????????????? | | ######??###### ##?????????????????? | | ##???????#|=! #?????????????????? | | ######???#*%! ##????????????????? | | ##??#=## ## ### ## ???????? | | ##?# #######@a a ???????? | | # #?# #?????# a % ???????? | | # #?# #?????##a %### ## ?????????? | | ## *%=###%#??????##!%!!#????##???????????? | | ## !%*%=#????????#= *#?????????????????? | | !####?????????#=%#?????????????????? | | ### #????????????? ! #????????????????? | | #####?## ## #?????????????? ???????????????? | | ???????## ### #?????????????? ??????????????? | | ????##??# #?# #????####??????? #?????????????? | | ???# ????#?# ##???# ###????? ?????????????? | | ???# #??????# ##??# ##????? ????????????? | | ???# #?????## #### #????? #####???????????? | | ???# #????## #?????? ???????????????? | | #### #???## ### #?????????????????????? | | ## #??## #??# #?????????????????????? | | ## #### ##???# ##?????????????????????? | | ## ## ####?????###??????????????????????? | | """ ##?????????????????????????????????? | | #### """ #??????????????????????????????????? | | #??# """ #??????????????????????????????????? | | #??## %#??????????????????????????????????? | | #???## #??????????????????????????????????? | | ###????## #??????????????????????????????????? | | ????????## #??????????????????????????????????? | +----------------------------------------------------+ Best States ------------- Heat Dissipation 25 Energy Generation 18 Energy Capacity 275 Matter Stores 300 Matter Capacity 300 Sight Range 16 Terrain Scan Range 16 Terrain Scan Density 10 Additional Mass Support 6 Propulsion Shielding 33 Evasion (%) 62 Item Schematics ----------------- None Robot Schematics ------------------ None Fabricated ------------ Nothing Repaired ---------- Nothing Studied --------- None Alien Tech Used ----------------- None Achievements -------------- None Challenges ------------ None Game ------ Seed PlexusCarbideTurretformer Manual? 0 Play Time 00:09:14 Cumulative 17.1 hours Start 2026.08.06 @ 19:52:30 End 2026.08.06 @ 20:01:14 Sessions 1 Manual Loads 0 Difficulty Rogue Special Mode None Game No. 60 Rogue 60 Adventurer 0 Explorer 0 Win Type - Total 0 Types 0/0/0/0/0/0/0/0/0/0 Lore% 15 Gallery% 22 Achievement% 16 Wizard Run 0 Options --------- Layout 1 ASCII 0 Keyboard 0 Movement Mouse Keybinds 0 Fullscreen 1 Font 24/Smallcaps Map View 50x35 Zoom Use 0% Tactical HUD 0 Map Filters NONE Filters NONE Steam 1 RUN: 6c90dd62-b17c-492b-8be1-1fc518270ddd